fUSD/lending_fUSD_20260621
["ID","MTS","AMOUNT","RATE_DAILY","PERIOD"]
[425949595,1782042659000,-500.0,0.00027671,2]
[425949592,1782042659000,-4082.48,0.00027671,2]
[425949596,1782042659000,-500.0,0.00027671,2]
[425949597,1782042659000,-500.0,0.00027671,2]
[425949598,1782042659000,-536.96,0.00027671,2]
[425949600,1782042659000,-151.0,0.00027671,7]
[425949599,1782042659000,-179.93213212,0.00027671,2]
[425949601,1782042659000,-516.09836533,0.00027671,2]
[425949602,1782042659000,-500.0,0.00027671,2]
[425949603,1782042659000,-500.0,0.00027671,2]
[425949608,1782042659000,-500.0,0.00027671,2]
[425949612,1782042659000,-500.0,0.00027671,2]
[425949604,1782042659000,-3827.26,0.00027671,2]
[425949610,1782042659000,-500.0,0.00027671,2]
[425949606,1782042659000,-500.0,0.00027671,2]
[425949613,1782042659000,-500.0,0.00027671,2]
[425949607,1782042659000,-163.901188,0.00027671,7]
[425949605,1782042659000,-500.0,0.00027671,2]
[425949609,1782042659000,-563.62,0.00027671,2]
[425949614,1782042659000,-500.0,0.00027671,2]
[425949556,1782042659000,-500.0,0.00027671,2]
[425949583,1782042659000,-817.39,0.00027671,2]
[425949579,1782042659000,-500.0,0.00027671,2]
[425949611,1782042659000,-569.48420651,0.00027671,2]
[425949589,1782042659000,-8981.31,0.00027671,2]
[425949585,1782042659000,-500.0,0.00027671,2]
[425949555,1782042659000,-500.0,0.00027671,2]
[425949565,1782042659000,-488.28925274,0.00027671,2]
[425949558,1782042659000,-500.0,0.00027671,2]
[425949563,1782042659000,-505.99,0.00027671,2]
[425949561,1782042659000,-3945.85,0.00027671,2]
[425949564,1782042659000,-500.0,0.00027671,2]
[425949562,1782042659000,-500.0,0.00027671,2]
[425949559,1782042659000,-500.0,0.00027671,2]
[425949560,1782042659000,-500.0,0.00027671,2]
[425949573,1782042659000,-500.0,0.00027671,2]
[425949567,1782042659000,-6980.09,0.00027671,2]
[425949578,1782042659000,-6931.15,0.00027671,2]
[425949557,1782042659000,-500.0,0.00027671,2]
[425949570,1782042659000,-500.0,0.00027671,2]
[425949582,1782042659000,-500.0,0.00027671,2]
[425949576,1782042659000,-4352.03,0.00027671,2]
[425949584,1782042659000,-4743.48,0.00027671,2]
[425949581,1782042659000,-8347.78,0.00027671,2]
[425949580,1782042659000,-8419.53,0.00027671,2]
[425949574,1782042659000,-500.0,0.00027671,2]
[425949590,1782042659000,-500.0,0.00027671,2]
[425949569,1782042659000,-7571.98,0.00027671,2]
[425949572,1782042659000,-500.0,0.00027671,2]
[425949568,1782042659000,-500.0,0.00027671,2]
[425949577,1782042659000,-6043.28,0.00027671,2]
[425949571,1782042659000,-500.0,0.00027671,2]
[425949575,1782042659000,-3607.27,0.00027671,2]
[425949636,1782042660000,-500.0,0.00027671,2]
[425949645,1782042660000,-500.0,0.00027671,2]
[425949635,1782042660000,-604.06,0.00027671,2]
[425949638,1782042660000,-603.85,0.00027671,2]
[425949637,1782042660000,-673.53,0.00027671,2]
[425949641,1782042660000,-11148.58,0.00027671,2]
[425949643,1782042660000,-500.0,0.00027671,2]
[425949644,1782042660000,-500.0,0.00027671,2]
[425949646,1782042660000,-1244.82,0.00027671,2]
[425949651,1782042660000,-500.0,0.00027671,2]
[425949642,1782042660000,-500.0,0.00027671,2]
[425949648,1782042660000,-4489.89,0.00027671,2]
[425949649,1782042660000,-712.4,0.00027671,2]
[425949652,1782042660000,-500.0,0.00027671,2]
[425949650,1782042660000,-500.0,0.00027671,2]
[425949653,1782042660000,-13098.52,0.00027671,2]
[425949634,1782042660000,-500.0,0.00027671,2]
[425949654,1782042660000,-9170.86,0.00027671,2]
[425949647,1782042660000,-500.0,0.00027671,2]
[425949631,1782042660000,-500.0,0.00027671,2]
[425949624,1782042660000,-560.48,0.00027671,2]
[425949632,1782042660000,-8823.24,0.00027671,2]
[425949655,1782042660000,-583.26,0.00027671,2]
[425949616,1782042660000,-646.89,0.00027671,2]
[425949617,1782042660000,-8712.79,0.00027671,2]
[425949620,1782042660000,-500.0,0.00027671,2]
[425949619,1782042660000,-500.0,0.00027671,2]
[425949618,1782042660000,-500.0,0.00027671,2]
[425949621,1782042660000,-5634.66,0.00027671,2]
[425949626,1782042660000,-500.0,0.00027671,2]
[425949633,1782042660000,-6837.07,0.00027671,2]
[425949623,1782042660000,-500.0,0.00027671,2]
[425949622,1782042660000,-500.0,0.00027671,2]
[425949625,1782042660000,-526.10653019,0.00027671,2]
[425949627,1782042660000,-5516.17,0.00027671,2]
[425949629,1782042660000,-500.0,0.00027671,2]
[425949628,1782042660000,-500.0,0.00027671,2]
[425949639,1782042660000,-500.0,0.00027671,2]
[425949640,1782042660000,-500.0,0.00027671,2]
[425949630,1782042660000,-501.82455083,0.00027671,2]
[425949615,1782042660000,-500.0,0.00027671,2]
[425949656,1782042660000,-500.0,0.00027671,2]
[425949664,1782042660000,-583.84,0.00027671,2]
[425949657,1782042660000,-500.0,0.00027671,2]
[425949682,1782042660000,-500.0,0.00027671,2]
[425949686,1782042660000,-500.0,0.00027671,2]
[425949683,1782042660000,-500.0,0.00027671,2]
[425949687,1782042660000,-500.0,0.00027671,2]
[425949685,1782042660000,-500.0,0.00027671,2]
[425949684,1782042660000,-500.0,0.00027671,2]
[425949690,1782042660000,-169.5427946,0.00027671,2]
[425949692,1782042660000,-500.0,0.00027671,2]
[425949680,1782042660000,-500.0,0.00027671,2]
[425949689,1782042660000,-1177.81,0.00027671,2]
[425949691,1782042660000,-500.0,0.00027671,2]
[425949694,1782042660000,-500.0,0.00027671,2]
[425949695,1782042660000,-3502.01,0.00027671,2]
[425949696,1782042660000,-500.0,0.00027671,2]
[425949697,1782042660000,-698.41,0.00027671,2]
[425949699,1782042660000,-1089.98,0.00027671,2]
[425949698,1782042660000,-623.51,0.00027671,2]
[425949658,1782042660000,-500.0,0.00027671,2]
[425949693,1782042660000,-500.0,0.00027671,2]
[425949681,1782042660000,-4706.4,0.00027671,2]
[425949688,1782042660000,-500.0,0.00027671,2]
[425949676,1782042660000,-500.0,0.00027671,2]
[425949677,1782042660000,-500.0,0.00027671,2]
[425949660,1782042660000,-500.0,0.00027671,2]
[425949661,1782042660000,-500.0,0.00027671,2]
[425949662,1782042660000,-1052.83,0.00027671,2]
[425949663,1782042660000,-752.63,0.00027671,2]
[425949665,1782042660000,-500.0,0.00027671,2]
[425949666,1782042660000,-10548.55,0.00027671,2]
[425949668,1782042660000,-7027.59,0.00027671,2]
[425949670,1782042660000,-732.43,0.00027671,2]
[425949659,1782042660000,-500.0,0.00027671,2]
[425949678,1782042660000,-500.0,0.00027671,2]
[425949671,1782042660000,-500.0,0.00027671,2]
[425949669,1782042660000,-500.0,0.00027671,2]
[425949673,1782042660000,-500.0,0.00027671,2]
[425949672,1782042660000,-500.0,0.00027671,2]
[425949674,1782042660000,-500.0,0.00027671,2]
[425949675,1782042660000,-513.46,0.00027671,2]
[425949679,1782042660000,-500.0,0.00027671,2]
[425949667,1782042660000,-500.0,0.00027671,2]
[425949730,1782042661000,-500.0,0.00027671,2]
[425949728,1782042661000,-500.0,0.00027671,2]
[425949731,1782042661000,-500.0,0.00027671,2]
[425949725,1782042661000,-3494.12,0.00027671,2]
[425949726,1782042661000,-500.0,0.00027671,2]
[425949721,1782042661000,-500.0,0.00027671,2]
[425949727,1782042661000,-500.0,0.00027671,2]
[425949723,1782042661000,-500.0,0.00027671,2]
[425949724,1782042661000,-548.35,0.00027671,2]
[425949732,1782042661000,-500.0,0.00027671,2]
[425949738,1782042661000,-904.85,0.00027671,2]
[425949743,1782042661000,-500.0,0.00027671,2]
[425949734,1782042661000,-594.9,0.00027671,2]
[425949735,1782042661000,-500.0,0.00027671,2]
[425949740,1782042661000,-3570.15,0.00027671,2]
[425949739,1782042661000,-500.0,0.00027671,2]
[425949737,1782042661000,-500.0,0.00027671,2]
[425949733,1782042661000,-500.0,0.00027671,2]
[425949736,1782042661000,-1099.14,0.00027671,2]
[425949742,1782042661000,-516.33848026,0.00027671,2]
[425949722,1782042661000,-500.0,0.00027671,2]
[425949700,1782042661000,-500.0,0.00027671,2]
[425949717,1782042661000,-500.0,0.00027671,2]
[425949741,1782042661000,-500.0,0.00027671,2]
[425949701,1782042661000,-163.87219011,0.00027671,2]
[425949703,1782042661000,-500.0,0.00027671,2]
[425949702,1782042661000,-500.0,0.00027671,2]
[425949704,1782042661000,-500.0,0.00027671,2]
[425949705,1782042661000,-741.24,0.00027671,2]
[425949707,1782042661000,-500.0,0.00027671,2]
[425949709,1782042661000,-500.0,0.00027671,2]
[425949708,1782042661000,-500.0,0.00027671,2]
[425949706,1782042661000,-500.0,0.00027671,2]
[425949710,1782042661000,-500.0,0.00027671,2]
[425949712,1782042661000,-15685.64,0.00027671,2]
[425949716,1782042661000,-629.21,0.00027671,2]
[425949713,1782042661000,-500.0,0.00027671,2]
[425949715,1782042661000,-500.0,0.00027671,2]
[425949714,1782042661000,-500.0,0.00027671,2]
[425949711,1782042661000,-500.0,0.00027671,2]
[425949718,1782042661000,-9193.94,0.00027671,2]
[425949720,1782042661000,-500.0,0.00027671,2]
[425949719,1782042661000,-500.0,0.00027671,2]
[425949744,1782042661000,-500.0,0.00027671,2]
[425949729,1782042661000,-500.0,0.00027671,2]
[425949750,1782042661000,-272.77956183,0.00027671,2]
[425949771,1782042661000,-1292.55,0.00027675,2]
[425949773,1782042661000,-226.7224,0.00027747,2]
[425949769,1782042661000,-500.0,0.00027671,2]
[425949778,1782042661000,-500.0,0.00027944,2]
[425949774,1782042661000,-155.66,0.00027788,7]
[425949772,1782042661000,-5391.90124646,0.00027708,2]
[425949777,1782042661000,-233.39,0.00027853,2]
[425949776,1782042661000,-5391.90124646,0.00027845,2]
[425949775,1782042661000,-157.04,0.00027788,7]
[425949779,1782042661000,-500.0,0.00027944,2]
[425949782,1782042661000,-500.0,0.00027944,2]
[425949786,1782042661000,-500.0,0.00027944,2]
[425949785,1782042661000,-500.0,0.00027944,2]
[425949783,1782042661000,-500.0,0.00027944,2]
[425949781,1782042661000,-500.0,0.00027944,2]
[425949788,1782042661000,-500.0,0.00027944,2]
[425949784,1782042661000,-500.0,0.00027944,2]
[425949789,1782042661000,-500.0,0.00027944,2]
[425949752,1782042661000,-510.83834531,0.00027671,2]
[425949770,1782042661000,-526.11,0.00027675,2]
[425949761,1782042661000,-2639.33,0.00027671,2]
[425949780,1782042661000,-500.0,0.00027944,2]
[425949766,1782042661000,-626.98,0.00027671,2]
[425949754,1782042661000,-500.0,0.00027671,2]
[425949765,1782042661000,-867.54,0.00027671,2]
[425949755,1782042661000,-500.0,0.00027671,2]
[425949745,1782042661000,-500.0,0.00027671,2]
[425949749,1782042661000,-500.0,0.00027671,2]
[425949753,1782042661000,-4363.97,0.00027671,2]
[425949746,1782042661000,-500.0,0.00027671,2]
[425949748,1782042661000,-500.0,0.00027671,2]
[425949747,1782042661000,-577.8763875,0.00027671,2]
[425949756,1782042661000,-500.0,0.00027671,2]
[425949751,1782042661000,-500.0,0.00027671,2]
[425949758,1782042661000,-500.0,0.00027671,2]
[425949787,1782042661000,-500.0,0.00027944,2]
[425949767,1782042661000,-500.0,0.00027671,2]
[425949764,1782042661000,-500.0,0.00027671,2]
[425949757,1782042661000,-500.0,0.00027671,2]
[425949768,1782042661000,-500.0,0.00027671,2]
[425949760,1782042661000,-2865.46,0.00027671,2]
[425949759,1782042661000,-5230.31,0.00027671,2]
[425949763,1782042661000,-500.0,0.00027671,2]
[425949762,1782042661000,-500.0,0.00027671,2]
[425949820,1782042662000,-500.0,0.00027944,2]
[425949830,1782042662000,-500.0,0.00027944,2]
[425949829,1782042662000,-500.0,0.00027944,2]
[425949835,1782042662000,-500.0,0.00027944,2]
[425949826,1782042662000,-500.0,0.00027944,2]
[425949823,1782042662000,-500.0,0.00027944,2]
[425949821,1782042662000,-500.0,0.00027944,2]
[425949825,1782042662000,-500.0,0.00027944,2]
[425949822,1782042662000,-500.0,0.00027944,2]
[425949828,1782042662000,-500.0,0.00027944,2]
[425949824,1782042662000,-500.0,0.00027944,2]
[425949832,1782042662000,-500.0,0.00027944,2]
[425949843,1782042662000,-500.0,0.00027945,2]
[425949834,1782042662000,-500.0,0.00027944,2]
[425949827,1782042662000,-500.0,0.00027944,2]
[425949833,1782042662000,-500.0,0.00027944,2]
[425949836,1782042662000,-500.0,0.00027944,2]
[425949838,1782042662000,-500.0,0.00027944,2]
[425949837,1782042662000,-500.0,0.00027944,2]
[425949841,1782042662000,-500.0,0.00027945,2]
[425949840,1782042662000,-500.0,0.00027945,2]
[425949842,1782042662000,-720.68,0.00027945,2]
[425949845,1782042662000,-500.0,0.00027945,2]
[425949844,1782042662000,-500.0,0.00027945,2]
[425949818,1782042662000,-500.0,0.00027944,2]
[425949831,1782042662000,-500.0,0.00027944,2]
[425949819,1782042662000,-500.0,0.00027944,2]
[425949795,1782042662000,-500.0,0.00027944,2]
[425949815,1782042662000,-500.0,0.00027944,2]
[425949790,1782042662000,-500.0,0.00027944,2]
[425949792,1782042662000,-500.0,0.00027944,2]
[425949791,1782042662000,-500.0,0.00027944,2]
[425949794,1782042662000,-500.0,0.00027944,2]
[425949802,1782042662000,-500.0,0.00027944,2]
[425949793,1782042662000,-500.0,0.00027944,2]
[425949847,1782042662000,-500.0,0.00027945,2]
[425949800,1782042662000,-500.0,0.00027944,2]
[425949798,1782042662000,-500.0,0.00027944,2]
[425949799,1782042662000,-500.0,0.00027944,2]
[425949796,1782042662000,-500.0,0.00027944,2]
[425949797,1782042662000,-500.0,0.00027944,2]
[425949817,1782042662000,-500.0,0.00027944,2]
[425949801,1782042662000,-500.0,0.00027944,2]
[425949814,1782042662000,-500.0,0.00027944,2]
[425949805,1782042662000,-500.0,0.00027944,2]
[425949806,1782042662000,-500.0,0.00027944,2]
[425949809,1782042662000,-500.0,0.00027944,2]
[425949807,1782042662000,-500.0,0.00027944,2]
[425949804,1782042662000,-500.0,0.00027944,2]
[425949810,1782042662000,-500.0,0.00027944,2]
[425949808,1782042662000,-500.0,0.00027944,2]
[425949811,1782042662000,-500.0,0.00027944,2]
[425949812,1782042662000,-500.0,0.00027944,2]
[425949803,1782042662000,-500.0,0.00027944,2]
[425949816,1782042662000,-500.0,0.00027944,2]
[425949813,1782042662000,-500.0,0.00027944,2]
[425949846,1782042662000,-510.16,0.00027945,2]
[425949839,1782042662000,-156.942245,0.00027945,2]
[425949855,1782042662000,-500.0,0.00027945,2]
[425949879,1782042662000,-500.0,0.00027945,2]
[425949881,1782042662000,-500.0,0.00027945,2]
[425949877,1782042662000,-500.0,0.00027945,2]
[425949882,1782042662000,-500.0,0.00027945,2]
[425949885,1782042662000,-263.69515248,0.00027945,2]
[425949884,1782042662000,-500.0,0.00027945,2]
[425949892,1782042662000,-153.019767,0.00027945,7]
[425949895,1782042662000,-500.0,0.00027945,2]
[425949889,1782042662000,-500.0,0.00027945,2]
[425949890,1782042662000,-500.0,0.00027945,2]
[425949896,1782042662000,-500.0,0.00027945,2]
[425949886,1782042662000,-500.0,0.00027945,2]
[425949874,1782042662000,-500.0,0.00027945,2]
[425949887,1782042662000,-500.0,0.00027945,2]
[425949894,1782042662000,-500.0,0.00027945,2]
[425949893,1782042662000,-500.0,0.00027945,2]
[425949897,1782042662000,-862.14,0.00027945,2]
[425949899,1782042662000,-1000.0,0.00027945,2]
[425949898,1782042662000,-500.0,0.00027945,2]
[425949902,1782042662000,-500.0,0.00027945,2]
[425949901,1782042662000,-500.0,0.00027945,2]
[425949904,1782042662000,-500.0,0.00027945,2]
[425949903,1782042662000,-500.0,0.00027945,2]
[425949900,1782042662000,-1018.9,0.00027945,2]
[425949905,1782042662000,-500.0,0.00027945,2]
[425949858,1782042662000,-500.0,0.00027945,2]
[425949891,1782042662000,-500.0,0.00027945,2]
[425949878,1782042662000,-500.0,0.00027945,2]
[425949888,1782042662000,-500.0,0.00027945,2]
[425949871,1782042662000,-500.0,0.00027945,2]
[425949873,1782042662000,-567.38,0.00027945,2]
[425949850,1782042662000,-500.0,0.00027945,2]
[425949849,1782042662000,-500.0,0.00027945,2]
[425949848,1782042662000,-1477.98,0.00027945,2]
[425949851,1782042662000,-537.97,0.00027945,2]
[425949857,1782042662000,-500.0,0.00027945,2]
[425949852,1782042662000,-1005.32,0.00027945,2]
[425949856,1782042662000,-500.0,0.00027945,2]
[425949854,1782042662000,-500.0,0.00027945,2]
[425949870,1782042662000,-500.0,0.00027945,2]
[425949860,1782042662000,-500.0,0.00027945,2]
[425949861,1782042662000,-1067.39,0.00027945,2]
[425949862,1782042662000,-500.0,0.00027945,2]
[425949853,1782042662000,-500.0,0.00027945,2]
[425949863,1782042662000,-395.68934911,0.00027945,2]
[425949859,1782042662000,-259.00130301,0.00027945,2]
[425949875,1782042662000,-951.58,0.00027945,2]
[425949883,1782042662000,-570.55,0.00027945,2]
[425949880,1782042662000,-1141.49,0.00027945,2]
[425949872,1782042662000,-500.0,0.00027945,2]
[425949865,1782042662000,-500.0,0.00027945,2]
[425949876,1782042662000,-500.0,0.00027945,2]
[425949867,1782042662000,-781.19,0.00027945,2]
[425949866,1782042662000,-500.0,0.00027945,2]
[425949869,1782042662000,-500.0,0.00027945,2]
[425949864,1782042662000,-500.0,0.00027945,2]
[425949868,1782042662000,-589.9,0.00027945,2]
[425949946,1782042663000,-945.92,0.00027945,2]
[425949947,1782042663000,-500.0,0.00027945,2]
[425949944,1782042663000,-500.0,0.00027945,2]
[425949939,1782042663000,-628.69200536,0.00027945,2]
[425949935,1782042663000,-500.0,0.00027945,2]
[425949941,1782042663000,-500.0,0.00027945,2]
[425949936,1782042663000,-500.0,0.00027945,2]
[425949934,1782042663000,-583.76,0.00027945,2]
[425949940,1782042663000,-500.0,0.00027945,2]
[425949950,1782042663000,-500.0,0.00027945,2]
[425949937,1782042663000,-533.72130013,0.00027945,2]
[425949945,1782042663000,-500.0,0.00027945,2]
[425949948,1782042663000,-500.0,0.00027945,2]
[425949956,1782042663000,-605.58365149,0.00027945,2]
[425949953,1782042663000,-500.0,0.00027945,2]
[425949949,1782042663000,-500.0,0.00027945,2]
[425949955,1782042663000,-500.0,0.00027945,2]
[425949951,1782042663000,-500.0,0.00027945,2]
[425949952,1782042663000,-500.0,0.00027945,2]
[425949957,1782042663000,-622.18,0.00027945,2]
[425949958,1782042663000,-500.0,0.00027945,2]
[425949962,1782042663000,-500.0,0.00027945,2]
[425949965,1782042663000,-4612.74,0.00027945,2]
[425949966,1782042663000,-500.0,0.00027945,2]
[425949938,1782042663000,-500.0,0.00027945,2]
[425949954,1782042663000,-500.0,0.00027945,2]
[425949932,1782042663000,-500.0,0.00027945,2]
[425949959,1782042663000,-4153.2,0.00027945,2]
[425949933,1782042663000,-486.50312307,0.00027945,2]
[425949907,1782042663000,-300.80559119,0.00027945,2]
[425949908,1782042663000,-500.0,0.00027945,2]
[425949906,1782042663000,-500.0,0.00027945,2]
[425949910,1782042663000,-868.1,0.00027945,2]
[425949920,1782042663000,-500.0,0.00027945,2]
[425949909,1782042663000,-500.0,0.00027945,2]
[425949911,1782042663000,-500.0,0.00027945,2]
[425949913,1782042663000,-500.0,0.00027945,2]
[425949912,1782042663000,-500.0,0.00027945,2]
[425949919,1782042663000,-552.02595951,0.00027945,2]
[425949914,1782042663000,-532.94558662,0.00027945,2]
[425949917,1782042663000,-500.0,0.00027945,2]
[425949943,1782042663000,-788.25,0.00027945,2]
[425949916,1782042663000,-500.0,0.00027945,2]
[425949918,1782042663000,-216.59211478,0.00027945,2]
[425949921,1782042663000,-500.0,0.00027945,2]
[425949923,1782042663000,-500.0,0.00027945,2]
[425949927,1782042663000,-500.0,0.00027945,2]
[425949926,1782042663000,-500.0,0.00027945,2]
[425949924,1782042663000,-500.0,0.00027945,2]
[425949922,1782042663000,-500.0,0.00027945,2]
[425949925,1782042663000,-500.0,0.00027945,2]
[425949928,1782042663000,-608.21,0.00027945,2]
[425949931,1782042663000,-533.50882742,0.00027945,2]
[425949929,1782042663000,-500.0,0.00027945,2]
[425949930,1782042663000,-500.0,0.00027945,2]
[425949915,1782042663000,-500.0,0.00027945,2]
[425949963,1782042663000,-500.0,0.00027945,2]
[425949942,1782042663000,-500.0,0.00027945,2]
[425949964,1782042663000,-536.52710487,0.00027945,2]
[425950001,1782042663000,-506.54922327,0.00027945,2]
[425949995,1782042663000,-500.0,0.00027945,2]
[425949999,1782042663000,-500.0,0.00027945,2]
[425950002,1782042663000,-500.0,0.00027945,2]
[425949996,1782042663000,-644.27153407,0.00027945,2]
[425950000,1782042663000,-758.6,0.00027945,2]
[425949998,1782042663000,-500.0,0.00027945,2]
[425950004,1782042663000,-577.03,0.00027945,2]
[425950013,1782042663000,-500.0,0.00027945,2]
[425950012,1782042663000,-2112.512751,0.00027945,7]
[425950014,1782042663000,-2112.512751,0.00027945,7]
[425950006,1782042663000,-618.92,0.00027945,2]
[425949992,1782042663000,-803.05,0.00027945,2]
[425950003,1782042663000,-797.27,0.00027945,2]
[425950015,1782042663000,-500.0,0.00027945,2]
[425950010,1782042663000,-2112.512751,0.00027945,7]
[425950011,1782042663000,-500.0,0.00027945,2]
[425950007,1782042663000,-500.0,0.00027945,2]
[425950008,1782042663000,-500.0,0.00027945,2]
[425950009,1782042663000,-500.0,0.00027945,2]
[425950016,1782042663000,-500.0,0.00027945,2]
[425950020,1782042663000,-1108.64,0.00027945,2]
[425950019,1782042663000,-577.07,0.00027945,2]
[425950021,1782042663000,-568.07,0.00027945,2]
[425950022,1782042663000,-500.0,0.00027945,2]
[425949961,1782042663000,-500.0,0.00027945,2]
[425950005,1782042663000,-500.0,0.00027945,2]
[425949997,1782042663000,-500.0,0.00027945,2]
[425950018,1782042663000,-2112.512751,0.00027945,7]
[425949993,1782042663000,-223.40872918,0.00027945,2]
[425949994,1782042663000,-500.0,0.00027945,2]
[425949967,1782042663000,-791.12,0.00027945,2]
[425949968,1782042663000,-500.0,0.00027945,2]
[425949970,1782042663000,-500.0,0.00027945,2]
[425949972,1782042663000,-500.0,0.00027945,2]
[425949969,1782042663000,-606.02181238,0.00027945,2]
[425949971,1782042663000,-605.37,0.00027945,2]
[425949976,1782042663000,-944.93,0.00027945,2]
[425949978,1782042663000,-500.0,0.00027945,2]
[425949975,1782042663000,-500.0,0.00027945,2]
[425949973,1782042663000,-500.0,0.00027945,2]
[425949974,1782042663000,-517.66992654,0.00027945,2]
[425949979,1782042663000,-500.0,0.00027945,2]
[425949960,1782042663000,-500.0,0.00027945,2]
[425949981,1782042663000,-500.0,0.00027945,2]
[425949977,1782042663000,-333.64757059,0.00027945,2]
[425950017,1782042663000,-500.0,0.00027945,2]
[425949988,1782042663000,-500.0,0.00027945,2]
[425949984,1782042663000,-5124.46,0.00027945,2]
[425949986,1782042663000,-500.0,0.00027945,2]
[425949990,1782042663000,-526.22,0.00027945,2]
[425949991,1782042663000,-500.0,0.00027945,2]
[425949985,1782042663000,-500.0,0.00027945,2]
[425949989,1782042663000,-500.0,0.00027945,2]
[425949983,1782042663000,-471.4760649,0.00027945,2]
[425949982,1782042663000,-500.0,0.00027945,2]
[425949980,1782042663000,-574.45,0.00027945,2]
[425949987,1782042663000,-534.17,0.00027945,2]
[425950059,1782042664000,-500.0,0.00027945,2]
[425950063,1782042664000,-776.23,0.00027945,2]
[425950060,1782042664000,-500.0,0.00027945,2]
[425950053,1782042664000,-500.0,0.00027945,2]
[425950056,1782042664000,-500.0,0.00027945,2]
[425950057,1782042664000,-500.0,0.00027945,2]
[425950055,1782042664000,-435.91887059,0.00027945,2]
[425950062,1782042664000,-500.0,0.00027945,2]
[425950050,1782042664000,-500.0,0.00027945,2]
[425950054,1782042664000,-1012.47,0.00027945,2]
[425950048,1782042664000,-500.0,0.00027945,2]
[425950068,1782042664000,-500.0,0.00027945,2]
[425950066,1782042664000,-500.0,0.00027945,2]
[425950064,1782042664000,-500.0,0.00027945,2]
[425950067,1782042664000,-500.0,0.00027945,2]
[425950069,1782042664000,-500.0,0.00027945,2]
[425950065,1782042664000,-3388.86,0.00027945,2]
[425950070,1782042664000,-500.0,0.00027945,2]
[425950076,1782042664000,-513.61,0.00027945,2]
[425950071,1782042664000,-603.19,0.00027945,2]
[425950074,1782042664000,-500.0,0.00027945,2]
[425950072,1782042664000,-500.0,0.00027945,2]
[425950051,1782042664000,-500.0,0.00027945,2]
[425950078,1782042664000,-651.77,0.00027945,2]
[425950061,1782042664000,-500.0,0.00027945,2]
[425950058,1782042664000,-500.0,0.00027945,2]
[425950033,1782042664000,-223.5301522,0.00027945,2]
[425950052,1782042664000,-500.0,0.00027945,2]
[425950073,1782042664000,-610.42,0.00027945,2]
[425950023,1782042664000,-500.0,0.00027945,2]
[425950024,1782042664000,-1195.08,0.00027945,2]
[425950025,1782042664000,-500.0,0.00027945,2]
[425950026,1782042664000,-500.0,0.00027945,2]
[425950028,1782042664000,-500.0,0.00027945,2]
[425950029,1782042664000,-630.45,0.00027945,2]
[425950027,1782042664000,-4311.16,0.00027945,2]
[425950030,1782042664000,-500.0,0.00027945,2]
[425950035,1782042664000,-532.29,0.00027945,2]
[425950031,1782042664000,-729.73,0.00027945,2]